bitfinex/quotes_SOLUSD_20250811
["timestamp","ask_amount","ask_price","bid_price","bid_amount"]
[1754939578204,11.63853124,177.93,177.88,89.9]
[1754939578404,11.63853124,177.93,177.88,95.91816131]
[1754939578609,6.01816131,177.92,177.88,95.91816131]
[1754939578997,11.63853124,177.93,177.88,95.91816131]
[1754939580385,6.01816131,177.9,177.88,89.9]
[1754939580610,6.01816131,177.9,177.88,129.44]
[1754939581521,6.18423797,177.95,177.89,6.01816131]
[1754939581696,26.0,177.92,177.91,6.01816131]
[1754939581902,26.0,177.92,177.9,6.01816131]
[1754939582114,26.0,177.92,177.91,39.54]
[1754939584006,26.0,177.92,177.89,95.91816131]
[1754939584303,26.0,177.92,177.91,39.54]
[1754939586502,26.0,177.92,177.91,129.44]
[1754939586802,31.62050359,177.92,177.91,129.44]
[1754939588727,26.0,177.92,177.91,129.44]
[1754939592310,38.20328575,177.92,177.88,89.9]
[1754939592639,6.01816131,177.89,177.88,39.54]
[1754939593142,11.63961276,177.89,177.88,39.54]
[1754939597447,12.20423361,177.89,177.88,39.54]
[1754939597623,11.63961276,177.89,177.88,39.54]
[1754939598444,11.63961276,177.89,177.87,0.06]
[1754939598642,6.01816131,177.88,177.87,0.06]
[1754939599143,6.01816131,177.89,177.87,0.06]
[1754939599335,6.58278216,177.89,177.87,0.06]
[1754939599538,32.01816131,177.88,177.87,0.06]
[1754939601345,37.63992879,177.88,177.87,0.06]
[1754939602738,37.83085049,177.88,177.87,0.06]
[1754939604326,42.00457417,177.88,177.87,0.06]
[1754939604960,35.98641286,177.88,177.87,0.06]
[1754939605156,42.00457345,177.88,177.87,1e-08]
[1754939605355,41.81365175,177.88,177.87,1e-08]
[1754939605681,35.79549044,177.88,177.87,1e-08]
[1754939605837,42.0045799,177.88,177.87,1e-08]
[1754939606668,46.70570288,177.88,177.85,1e-08]
[1754939606867,26.0,177.84,177.83,1e-08]
[1754939607073,76.29650512,177.84,177.83,1e-08]
[1754939607234,76.48743327,177.84,177.83,1e-08]
[1754939607561,86.62066003,177.84,177.83,1e-08]
[1754939607946,86.81163119,177.84,177.83,1e-08]
[1754939608327,82.11050821,177.84,177.83,1e-08]
[1754939610960,93.04300082,177.84,177.83,1e-08]
[1754939611139,97.2111726,177.84,177.83,1e-08]
[1754939611535,97.02020144,177.84,177.83,1e-08]
[1754939612973,93.04305461,177.84,177.83,1e-08]
[1754939613146,97.21022922,177.84,177.83,1e-08]
[1754939614646,103.22839122,177.84,177.83,1e-08]
[1754939615058,103.24839122,177.84,177.83,1e-08]
[1754939616052,63.68839122,177.84,177.83,1e-08]
[1754939616250,103.24839122,177.84,177.83,1e-08]
[1754939616833,99.08121661,177.84,177.83,1e-08]
[1754939617067,103.24762319,177.84,177.83,1e-08]
[1754939617264,63.68762319,177.84,177.83,1e-08]
[1754939617565,103.24762319,177.84,177.83,1e-08]
[1754939619565,63.68762319,177.84,177.83,1e-08]
[1754939619760,48.58140762,177.84,177.83,1e-08]
[1754939619973,92.82606225,177.84,177.83,1e-08]
[1754939620366,87.94918488,177.84,177.83,1e-08]
[1754939620543,87.94908702,177.84,177.83,1e-08]
[1754939620850,88.14014426,177.84,177.83,1e-08]
[1754939621052,87.94908702,177.84,177.83,1e-08]
[1754939621250,88.14014426,177.84,177.83,1e-08]
[1754939621645,92.82577004,177.84,177.83,1e-08]
[1754939621853,92.6347128,177.84,177.83,1e-08]
[1754939622162,92.82577004,177.84,177.83,1e-08]
[1754939623067,92.82597822,177.84,177.83,1e-08]
[1754939623644,88.83035244,177.84,177.83,1e-08]
[1754939624351,88.6392952,177.84,177.83,1e-08]
[1754939624558,88.83034167,177.84,177.83,1e-08]
[1754939624867,84.69502256,177.84,177.83,1e-08]
[1754939625071,88.86204595,177.84,177.83,1e-08]
[1754939625652,88.17204595,177.84,177.83,1e-08]
[1754939628048,88.86204595,177.84,177.83,1e-08]
[1754939628253,88.17204595,177.84,177.83,1e-08]
[1754939628756,92.86159175,177.84,177.83,1e-08]
[1754939628957,92.67054528,177.84,177.83,1e-08]
[1754939629264,92.8631805,177.84,177.83,1e-08]
[1754939630075,91.92654568,177.84,177.83,1e-08]
[1754939630956,97.33882456,177.84,177.81,0.06]
[1754939631161,6.01816131,177.82,177.81,0.06]
[1754939631372,54.04430528,177.82,177.81,0.06]
[1754939631681,61.94300675,177.82,177.81,0.06]
[1754939631847,78.84298675,177.82,177.81,0.06]
[1754939632261,79.03403322,177.82,177.81,0.06]
[1754939632874,84.65769759,177.82,177.81,0.06]
[1754939633375,45.11769759,177.82,177.81,0.06]
[1754939633583,67.75771759,177.82,177.81,0.76]
[1754939634498,84.65769759,177.82,177.81,0.06]
[1754939635185,84.66401849,177.82,177.81,0.06]
[1754939636177,67.76403849,177.82,177.81,0.06]
[1754939636674,85.32401949,177.82,177.81,0.06]
[1754939636877,85.13297302,177.82,177.81,0.06]
[1754939637083,84.47297302,177.82,177.81,0.06]
[1754939637279,84.66400873,177.82,177.81,0.06]
[1754939638287,84.671971,177.82,177.81,0.06]
[1754939638588,89.36424988,177.82,177.81,0.06]
[1754939638794,89.36473286,177.82,177.81,0.06]
[1754939639171,84.67245398,177.82,177.81,0.06]
[1754939639481,89.36473286,177.82,177.81,0.06]
[1754939640379,89.36762327,177.82,177.81,0.06]
[1754939641109,26.0,177.79,177.78,0.66]
[1754939641285,14.52196184,177.79,177.78,0.66]
[1754939641782,14.71299755,177.79,177.78,0.66]
[1754939642183,12.5653367,177.79,177.78,0.66]
[1754939642373,26.0,177.77,177.72,93.77050046]
[1754939642578,3.75291098,177.76,177.73,3.87050046]
[1754939643271,3.77091301,177.76,177.72,93.77050046]
[1754939643471,3.77091301,177.76,177.73,3.87050046]
[1754939644283,3.77091301,177.76,177.74,3.87050046]
[1754939644592,3.77091301,177.76,177.73,15.10621557]
[1754939644801,3.77091301,177.76,177.75,3.87050046]
[1754939646503,3.77091301,177.76,177.74,3.87050046]
[1754939646674,3.77091301,177.75,177.74,15.10621557]
[1754939646874,3.77091301,177.75,177.73,89.9]
[1754939647180,31.62546108,177.77,177.73,93.77050046]
[1754939647395,3.77848107,177.76,177.73,93.77050046]
[1754939647582,3.77848107,177.75,177.73,93.77050046]
[1754939647787,3.77848107,177.74,177.73,108.87671603]
[1754939647985,3.77848107,177.74,177.73,105.00621557]
[1754939648287,3.77848107,177.74,177.73,108.87671603]
[1754939648795,3.77848107,177.74,177.73,148.41671603]
[1754939651101,3.77848107,177.74,177.73,154.04322815]
[1754939653303,3.77848107,177.74,177.73,148.41671603]
[1754939654305,3.77848107,177.74,177.73,154.04322815]
[1754939654805,3.77848107,177.74,177.73,148.41671603]
[1754939655782,3.77848107,177.74,177.73,148.39671603]
[1754939656303,3.77848107,177.74,177.73,154.02322815]
[1754939656503,3.77848107,177.74,177.73,148.39671603]
[1754939656706,3.77848107,177.74,177.73,154.02322815]
[1754939657408,33.87959062,177.81,177.76,15.10621557]
[1754939657409,3.78926053,177.78,177.76,15.10621557]
[1754939657712,33.68854415,177.81,177.78,15.10621557]
[1754939657878,7.68854415,177.81,177.8,3.87050046]
[1754939658078,7.68854415,177.81,177.8,86.12151893]
[1754939658586,33.68854415,177.81,177.8,89.99201939]
[1754939660306,33.68854415,177.81,177.8,86.12151893]
[1754939660498,33.68854415,177.81,177.8,92.16393686]
[1754939662319,39.3125248,177.81,177.8,86.12151893]
[1754939663414,39.3125248,177.81,177.8,92.16393686]
[1754939663920,7.68854415,177.81,177.8,92.16393686]
[1754939664091,7.68854415,177.81,177.8,107.27015243]
[1754939666916,7.68854415,177.81,177.8,101.2277345]
[1754939667109,7.68854415,177.81,177.8,107.27015243]
[1754939667296,13.3125248,177.81,177.8,107.27015243]
[1754939667494,13.3125248,177.81,177.8,92.16393686]
[1754939667707,13.3125248,177.81,177.8,131.68393686]
[1754939668090,13.3125248,177.81,177.8,92.16393686]
[1754939668296,13.3125248,177.81,177.8,125.62151893]
[1754939668997,13.3125248,177.81,177.8,86.12151893]
[1754939668998,19.35494273,177.81,177.8,86.12151893]
[1754939669303,33.41489436,177.81,177.79,39.5]
[1754939669503,6.60703878,177.8,177.78,39.5]
[1754939669710,6.04241793,177.8,177.78,39.5]
[1754939670525,5.6246133,177.79,177.78,39.5]
[1754939671698,5.81536639,177.8,177.78,45.54241793]
[1754939671904,39.31258539,177.81,177.79,6.04241793]
[1754939672220,26.0,177.79,177.77,6.04241793]
[1754939672414,26.0,177.79,177.78,39.5]
[1754939673012,31.6246133,177.79,177.78,39.5]
[1754939677498,31.6246133,177.79,177.78,45.54241793]
[1754939677901,31.6246133,177.79,177.78,39.5]
[1754939678318,31.6246133,177.79,177.78,125.62151893]
[1754939678727,31.6246133,177.79,177.78,131.66393686]
[1754939679312,33.68854415,177.81,177.78,131.66393686]
[1754939679600,33.68854415,177.81,177.8,6.04241793]
[1754939679807,33.68854415,177.81,177.8,45.54241793]
[1754939680400,7.68854415,177.81,177.8,45.54241793]
[1754939681428,7.68854415,177.81,177.8,60.6486335]
[1754939682309,7.68854415,177.81,177.8,66.69105143]
[1754939683836,7.68854415,177.81,177.8,60.6486335]
[1754939686507,7.68854415,177.81,177.8,21.1486335]
[1754939686709,7.68854415,177.81,177.8,60.6486335]
[1754939687236,7.68854415,177.81,177.8,146.77015243]
[1754939688310,7.68854415,177.81,177.8,152.81257036]
[1754939688652,0.03,177.83,177.81,15.10621557]
[1754939688807,0.03,177.83,177.82,60.6486335]
[1754939691938,0.03,177.83,177.82,15.10621557]
[1754939692122,0.03,177.83,177.82,60.6286335]
[1754939692435,0.03,177.83,177.8,92.16393686]
[1754939692631,0.03,177.83,177.81,39.48]
[1754939693829,6.07241793,177.83,177.8,86.12151893]
[1754939694033,6.04241793,177.82,177.81,39.48]
[1754939694418,6.07241793,177.83,177.81,39.48]
[1754939695425,0.03,177.83,177.81,39.48]
[1754939695623,5.62366437,177.82,177.81,39.48]
[1754939698947,5.62366437,177.82,177.81,125.60151893]
[1754939700345,0.03,177.83,177.82,15.10621557]
[1754939700546,0.03,177.83,177.82,21.71099993]
[1754939700773,0.03,177.83,177.82,21.1486335]
[1754939701048,0.03,177.83,177.82,39.48]
[1754939701935,0.03,177.83,177.82,45.52241793]
[1754939703337,0.03,177.83,177.82,39.48]
[1754939703534,0.03,177.83,177.82,45.52241793]
[1754939705758,0.03,177.83,177.76,2.81474425]
[1754939705939,0.75,177.83,177.8,21.1486335]
[1754939706247,0.75,177.83,177.81,39.48]
[1754939706456,0.03,177.83,177.81,45.52241793]
[1754939706638,0.03,177.83,177.82,6.71241793]
[1754939707233,0.03,177.83,177.82,6.04241793]
[1754939707647,0.03,177.83,177.81,39.48]
[1754939707828,0.03,177.83,177.82,6.04241793]
[1754939708226,0.03,177.83,177.82,6.71241793]
[1754939709153,0.03,177.83,177.81,39.48]
[1754939709455,0.03,177.83,177.81,40.15]
[1754939709654,0.03,177.83,177.82,6.04241793]
[1754939711253,0.03,177.83,177.81,40.15]
[1754939711254,0.75,177.83,177.81,39.48]
[1754939711449,0.72,177.82,177.79,21.8186335]
[1754939711639,0.72,177.82,177.8,54.56621557]
[1754939712149,0.03,177.83,177.81,6.10241793]
[1754939712344,26.03,177.83,177.82,39.46]
[1754939712862,31.65334814,177.83,177.82,39.46]
[1754939713072,0.03,177.83,177.82,45.50241793]
[1754939713234,0.03,177.83,177.82,46.17241793]
[1754939713649,0.03,177.83,177.82,45.50241793]
[1754939713849,0.03,177.83,177.82,39.46]
[1754939714133,5.65334814,177.83,177.82,39.46]
[1754939714356,6.37334814,177.83,177.82,39.46]
[1754939714532,5.65334814,177.83,177.82,39.46]
[1754939714846,0.03,177.83,177.82,39.46]
[1754939715946,0.03,177.83,177.82,46.17241793]
[1754939716667,0.03,177.83,177.82,45.50241793]
[1754939718147,0.03,177.83,177.82,46.17241793]
[1754939718644,0.03,177.83,177.82,45.50241793]
[1754939718961,0.69,177.83,177.82,39.46]
[1754939719861,6.31334814,177.83,177.82,39.46]
[1754939720039,5.65334814,177.83,177.82,39.46]
[1754939720855,5.65334814,177.83,177.82,46.17241793]
[1754939721065,0.03,177.83,177.82,46.17241793]
[1754939721770,0.03,177.83,177.82,45.50241793]
[1754939723256,0.03,177.83,177.82,39.46]
[1754939724842,0.03,177.83,177.81,0.06]
[1754939724843,6.73241793,177.83,177.81,0.06]
[1754939725038,7.26703878,177.82,177.81,0.06]
[1754939725341,12.89070315,177.82,177.81,0.06]
[1754939725794,12.89070315,177.82,177.79,39.52]
[1754939726066,6.04241793,177.8,177.79,0.06]
[1754939726440,6.70241793,177.8,177.79,0.06]
[1754939726843,32.70241793,177.8,177.79,0.06]
[1754939727243,33.45799919,177.8,177.79,0.06]
[1754939727440,13.08229615,177.8,177.79,0.06]
[1754939727659,13.08229615,177.8,177.77,0.06]
[1754939727660,26.0,177.78,177.77,1e-08]
[1754939727865,26.0,177.77,177.75,1e-08]
[1754939728063,6.60703878,177.76,177.75,1e-08]
[1754939728369,7.26703878,177.76,177.75,1e-08]
[1754939729541,12.89260133,177.76,177.75,1e-08]
[1754939734484,0.19100881,177.78,177.75,0.67000001]
[1754939734485,31.62534955,177.77,177.75,0.67000001]
[1754939734775,38.32776748,177.77,177.75,1e-08]
[1754939735145,6.04241793,177.76,177.75,1e-08]
[1754939735346,0.66,177.76,177.75,1e-08]
[1754939735542,6.70241793,177.76,177.75,1e-08]
[1754939735846,12.35798048,177.76,177.75,1e-08]
[1754939736971,12.92260133,177.76,177.75,1e-08]
[1754939737353,13.11366933,177.76,177.75,1e-08]
[1754939737947,12.54904848,177.76,177.75,1e-08]
[1754939738556,12.35798048,177.76,177.75,1e-08]
[1754939738769,12.54902695,177.76,177.75,1e-08]
[1754939739658,52.02902695,177.76,177.75,1e-08]
[1754939739857,56.59293635,177.76,177.75,1e-08]
[1754939740083,56.59293635,177.76,177.71,0.06]
[1754939740084,26.0,177.73,177.71,0.06]
[1754939740249,26.56462085,177.72,177.71,0.06]
[1754939740590,32.60703878,177.72,177.71,0.06]
[1754939740746,33.26703878,177.72,177.71,0.06]
[1754939741663,38.89386749,177.72,177.71,0.06]
[1754939742147,39.08491396,177.72,177.71,0.06]
[1754939745679,39.08496779,177.72,177.71,0.06]
[1754939746583,39.08496779,177.72,177.71,1e-08]
[1754939746788,38.89386749,177.72,177.71,1e-08]
[1754939747789,39.08501088,177.72,177.71,1e-08]
[1754939748176,77.90501088,177.72,177.71,1e-08]
[1754939748684,31.8179721,177.72,177.71,0.68000001]
[1754939748869,0.19114339,177.72,177.71,0.68000001]
[1754939749386,5.8179721,177.72,177.71,0.68000001]
[1754939749598,31.8179721,177.72,177.71,0.68000001]
[1754939749889,5.62682871,177.72,177.71,0.68000001]
[1754939750091,5.62682871,177.72,177.71,1e-08]
[1754939750863,37.66924664,177.72,177.71,1e-08]
[1754939751061,12.38924664,177.72,177.71,1e-08]
[1754939751677,38.58039003,177.72,177.71,1e-08]
[1754939751988,38.38924664,177.72,177.71,1e-08]
[1754939752193,38.58039003,177.72,177.71,1e-08]
[1754939752493,44.62280796,177.72,177.71,1e-08]
[1754939752674,18.62280796,177.72,177.71,1e-08]
[1754939752881,18.43166457,177.72,177.71,1e-08]
[1754939753268,38.5803631,177.72,177.71,1e-08]
[1754939753476,12.5803631,177.72,177.71,1e-08]
[1754939753791,18.62278103,177.72,177.71,1e-08]
[1754939753974,12.5803631,177.72,177.71,1e-08]
[1754939754176,38.5803631,177.72,177.71,1e-08]
[1754939754571,12.5803631,177.72,177.71,1e-08]
[1754939755802,51.3403631,177.72,177.71,1e-08]
[1754939755976,51.14924664,177.72,177.71,1e-08]
[1754939756190,52.0603631,177.72,177.71,1e-08]
[1754939756675,51.86924664,177.72,177.71,1e-08]
[1754939757083,52.0603631,177.72,177.71,1e-08]
[1754939757672,52.0603631,177.72,177.67,0.06]
[1754939757673,26.0,177.69,177.67,0.06]
[1754939757997,26.0,177.66,177.61,0.68]
[1754939758179,6.04241793,177.62,177.61,0.68]
[1754939758993,32.04241793,177.63,177.61,0.68]
[1754939759171,32.04241793,177.63,177.62,0.68]
[1754939759172,37.6720976,177.63,177.62,0.68]
[1754939759901,37.6720976,177.63,177.54,46.1524234]
[1754939759902,38.3920976,177.63,177.54,15.10621557]
[1754939760084,6.04241793,177.58,177.57,0.68]
[1754939760398,6.04241793,177.58,177.56,0.68]
[1754939760712,26.0,177.55,177.53,6.04241793]
[1754939760874,26.0,177.55,177.54,6.04241793]
[1754939761208,26.0,177.58,177.54,6.72241793]
[1754939761366,31.63154495,177.58,177.57,6.04241793]
[1754939761571,0.75577286,177.6,177.57,6.72241793]
[1754939761572,0.19115201,177.6,177.57,6.72241793]
[1754939761797,31.63069646,177.6,177.58,0.68]
[1754939762107,0.75577286,177.64,177.59,6.04241793]
[1754939762312,26.0,177.62,177.6,6.72241793]
[1754939762469,0.56462085,177.66,177.61,6.72241793]
[1754939762670,6.04241793,177.63,177.6,0.68]
[1754939762871,26.0,177.61,177.53,15.10621557]
[1754939763109,26.0,177.62,177.6,6.04241793]
[1754939763396,26.56462085,177.63,177.6,6.04241793]
[1754939763588,26.56462085,177.63,177.55,15.10621557]
[1754939763589,0.56462085,177.65,177.61,6.72241793]
[1754939763797,26.0,177.62,177.61,6.04241793]
[1754939764097,26.0,177.62,177.6,6.04241793]
[1754939764293,6.60703878,177.65,177.61,0.68]
[1754939764600,26.0,177.63,177.62,0.68]
[1754939764978,37.6720976,177.63,177.6,0.68]
[1754939765308,26.0,177.58,177.53,0.68]
[1754939765474,6.04241793,177.56,177.53,0.68]
[1754939765674,6.04241793,177.56,177.54,0.68]
[1754939766175,6.04241793,177.56,177.55,0.68]
[1754939768700,26.0,177.58,177.55,0.68]
[1754939768902,26.0,177.56,177.55,0.68]
[1754939769105,26.0,177.56,177.54,6.04241793]
[1754939769302,26.0,177.56,177.53,6.04241793]
[1754939769604,26.0,177.57,177.55,6.04241793]
[1754939769805,45.27005749,177.62,177.56,6.72241793]
[1754939769975,51.31247542,177.62,177.57,6.04241793]
[1754939770179,26.0,177.59,177.57,6.72241793]
[1754939770381,26.0,177.59,177.57,0.68]
[1754939770591,0.19122962,177.62,177.58,6.72241793]
[1754939770810,26.0,177.61,177.59,6.72241793]
[1754939771200,26.0,177.61,177.6,0.68]
[1754939773314,0.56462085,177.63,177.6,6.72241793]
[1754939773497,26.0,177.62,177.61,0.68]
[1754939773809,26.0,177.62,177.6,6.04241793]
[1754939774005,26.0,177.62,177.6,6.72241793]
[1754939776721,26.0,177.62,177.6,96.62241793]
[1754939779133,26.0,177.61,177.6,90.58]
[1754939781794,26.0,177.62,177.6,96.62241793]
[1754939782113,26.0,177.61,177.6,96.62241793]
[1754939782314,0.19122962,177.65,177.6,96.62241793]
[1754939782493,0.19122962,177.65,177.64,6.04241793]
[1754939782692,0.03,177.67,177.64,95.94241793]
[1754939783002,0.03,177.67,177.66,6.04241793]
[1754939784321,0.03,177.67,177.66,6.75241793]
[1754939784520,26.03,177.67,177.66,6.75241793]
[1754939786008,26.03,177.67,177.66,6.04241793]
[1754939786313,26.03,177.67,177.64,130.19]
[1754939786314,6.07241793,177.67,177.64,90.61]
[1754939786510,6.70241793,177.66,177.64,89.9]
[1754939786718,26.66,177.66,177.64,89.9]
[1754939787022,32.04241793,177.66,177.64,89.9]
[1754939788518,26.0,177.66,177.64,89.9]
[1754939789525,31.6288184,177.66,177.64,89.9]
[1754939789707,37.67123633,177.66,177.64,89.9]
[1754939789912,31.6288184,177.66,177.64,89.9]
[1754939790111,37.67123633,177.66,177.64,89.9]
[1754939790407,6.70241793,177.65,177.64,89.9]
[1754939791417,6.70241793,177.65,177.6,130.19]
[1754939791618,6.70241793,177.64,177.6,130.19]
[1754939791822,6.04241793,177.64,177.61,0.71]
[1754939792116,26.0,177.63,177.62,0.71]
[1754939792527,26.0,177.63,177.6,136.23241793]
[1754939792698,26.0,177.63,177.61,0.71]
[1754939793413,26.0,177.63,177.6,135.52241793]
[1754939793618,26.0,177.63,177.62,0.71]
[1754939796714,26.0,177.63,177.62,90.61]
[1754939797229,26.0,177.63,177.62,89.9]
[1754939798118,26.0,177.63,177.62,90.61]
[1754939799343,26.0,177.64,177.62,136.19241793]
[1754939799506,26.0,177.64,177.63,6.04241793]
[1754939799706,26.0,177.64,177.63,6.75241793]
[1754939799908,0.19117356,177.66,177.63,6.75241793]
[1754939800127,26.19117356,177.66,177.64,40.25]
[1754939800324,26.0,177.65,177.64,129.44]
[1754939800518,26.0,177.65,177.64,136.19241793]
[1754939802536,26.0,177.65,177.64,90.61]
[1754939803335,26.0,177.65,177.64,89.9]
[1754939805035,26.0,177.65,177.64,90.61]
[1754939812451,26.0,177.66,177.64,96.65241793]
[1754939812755,26.0,177.65,177.64,96.65241793]
[1754939812936,26.0,177.65,177.64,136.15241793]
[1754939814444,26.0,177.66,177.64,136.15241793]
[1754939814622,0.03,177.67,177.65,6.73241793]
[1754939814823,0.03,177.67,177.66,60.6486335]
[1754939815028,0.03,177.67,177.66,61.3386335]
[1754939817922,0.03,177.67,177.66,66.96736253]
[1754939819145,0.03,177.67,177.66,156.86736253]
[1754939820754,0.03,177.67,177.66,150.8249446]
[1754939820958,0.03,177.67,177.66,151.2386335]
[1754939821160,0.03,177.67,177.66,156.86736253]
[1754939822946,0.03,177.67,177.66,150.8249446]
[1754939823161,0.03,177.67,177.66,156.86736253]
[1754939823359,0.03,177.69,177.68,89.87]
[1754939823545,0.03,177.69,177.68,111.0186335]
[1754939823740,0.03,177.69,177.68,150.5186335]
[1754939825264,0.03,177.69,177.68,151.2086335]
[1754939825886,0.03,177.69,177.68,150.5186335]
[1754939826572,0.03,177.69,177.68,151.2086335]
[1754939827069,0.03,177.69,177.68,156.83672895]
[1754939832367,0.03,177.69,177.68,151.2086335]
[1754939833666,0.03,177.69,177.68,156.83672895]
[1754939834054,0.03,177.69,177.68,151.2086335]
[1754939835372,0.03,177.69,177.68,150.5186335]
[1754939838074,0.03,177.69,177.68,156.86672895]
[1754939838653,0.03,177.69,177.68,151.2186335]
[1754939839476,0.03,177.69,177.68,156.84672895]
[1754939841169,0.03,177.71,177.7,21.1486335]
[1754939841467,0.03,177.71,177.7,60.6286335]
[1754939841657,0.71,177.74,177.7,61.3486335]
[1754939841850,0.71,177.73,177.7,151.1886335]
[1754939842671,0.71,177.73,177.72,6.04241793]
[1754939842856,0.03,177.75,177.72,45.52241793]
[1754939843053,0.71,177.74,177.72,45.52241793]
[1754939843654,26.71,177.74,177.72,45.52241793]
[1754939844484,0.03,177.73,177.72,45.52241793]
[1754939844786,26.74,177.73,177.72,39.48]
[1754939846459,0.74,177.73,177.72,39.48]
[1754939847053,0.74,177.73,177.72,129.32]
[1754939848685,26.74,177.73,177.72,129.32]
[1754939849870,26.03,177.73,177.72,129.32]
[1754939850780,26.74,177.73,177.72,129.32]
[1754939852890,26.03,177.73,177.72,129.32]
[1754939853188,26.74,177.73,177.72,129.32]
[1754939853399,26.03,177.73,177.72,129.32]
[1754939854196,0.03,177.73,177.72,135.36241793]
[1754939854406,0.03,177.73,177.72,136.08241793]
[1754939855280,0.03,177.73,177.72,151.1886335]
[1754939855590,0.03,177.73,177.72,66.97546221]
[1754939855921,0.74,177.73,177.71,15.10621557]
[1754939856108,0.03,177.73,177.72,39.48]
[1754939856598,0.03,177.73,177.72,40.2]
[1754939858683,0.03,177.73,177.72,46.24241793]
[1754939860007,0.03,177.73,177.72,45.52241793]
[1754939860316,0.03,177.73,177.72,39.48]
[1754939862805,18.98660205,177.71,177.7,0.06]
[1754939863006,23.68553053,177.71,177.7,0.06]
[1754939863387,23.87658454,177.71,177.7,0.06]
[1754939863894,17.83416661,177.71,177.7,0.06]
[1754939867098,12.20702127,177.71,177.7,0.06]
[1754939867400,0.19105401,177.71,177.7,0.06]
[1754939867602,6.04241793,177.72,177.7,0.06]
[1754939867899,0.03,177.73,177.7,0.77]
[1754939868106,26.0,177.72,177.7,0.77]
[1754939868400,26.0,177.72,177.71,0.71]
[1754939868615,0.03,177.73,177.71,6.75241793]
[1754939868790,0.03,177.73,177.72,6.04241793]
[1754939869000,0.03,177.73,177.72,6.75241793]
[1754939870789,0.03,177.73,177.72,0.71]
[1754939871013,0.03,177.73,177.71,135.36241793]
[1754939871212,0.03,177.73,177.71,89.84]
[1754939871591,6.04241793,177.72,177.71,129.32]
[1754939871810,6.74241793,177.72,177.71,89.84]
[1754939872411,0.03,177.73,177.71,89.84]
[1754939873198,0.03,177.73,177.72,45.52241793]
[1754939873701,0.03,177.73,177.72,136.07241793]
[1754939874017,0.03,177.73,177.72,129.32]
[1754939874218,0.03,177.73,177.72,135.36241793]
[1754939874722,0.03,177.73,177.72,136.07241793]
[1754939876723,0.03,177.73,177.72,130.03]
[1754939877019,0.03,177.73,177.72,136.07241793]
[1754939877927,0.03,177.73,177.72,130.03]
[1754939878108,0.03,177.73,177.72,136.07241793]
[1754939878712,0.03,177.73,177.72,130.03]
[1754939878918,0.03,177.73,177.72,136.07241793]
[1754939879426,0.03,177.73,177.72,130.03]
[1754939879628,0.03,177.73,177.72,136.07241793]
[1754939881011,0.03,177.73,177.72,156.80546221]
[1754939881213,0.03,177.73,177.72,151.1786335]
[1754939881595,0.03,177.73,177.72,89.84]
[1754939881801,0.03,177.73,177.72,129.32]
[1754939883017,0.03,177.73,177.72,130.03]
[1754939884025,0.03,177.73,177.72,129.32]
[1754939884414,0.73,177.73,177.72,129.32]
[1754939885530,0.03,177.73,177.72,129.32]
[1754939887423,0.03,177.73,177.7,0.77]
[1754939887424,26.0,177.71,177.7,0.06]
[1754939887630,32.74241793,177.71,177.7,0.06]
[1754939888411,38.93418412,177.71,177.7,0.06]
[1754939890020,45.16766682,177.71,177.7,0.06]
[1754939890338,84.43660205,177.71,177.7,0.06]
[1754939890524,78.39418412,177.71,177.7,0.06]
[1754939890722,78.58524889,177.71,177.7,0.06]
[1754939891440,78.39418412,177.71,177.7,0.06]
[1754939892438,78.58524889,177.71,177.7,0.06]
[1754939893525,80.83997689,177.71,177.7,0.06]
[1754939893731,91.58009026,177.71,177.68,0.06]